bitfinex-derivatives/quotes_SOLF0:USTF0_20241206
["timestamp","ask_amount","ask_price","bid_price","bid_amount"]
[1733445941119,4.88,238.73,238.5,1.2662]
[1733445941319,2.0933,238.64,238.5,1.2662]
[1733445941513,16.17582987,238.7,238.54,2.0941]
[1733445941719,1.2321,238.69,238.54,2.0941]
[1733445941923,16.17582987,238.66,238.54,2.0941]
[1733445942115,16.17582987,238.66,238.52,2.0943]
[1733445942315,16.17582987,238.62,238.46,1.332]
[1733445942518,16.17582987,238.58,238.39,6.2283]
[1733445942723,16.17582987,238.58,238.39,7.5603]
[1733445943125,2.0941,238.55,238.39,7.5603]
[1733445945025,18.26962987,238.58,238.48,2.0947]
[1733445945227,1.2862,238.61,238.41,16.17582987]
[1733445945925,1.2862,238.61,238.45,16.17582987]
[1733445946628,1.2862,238.61,238.41,16.17582987]
[1733445947732,1.2862,238.61,238.53,2.0942]
[1733445947927,1.2862,238.61,238.44,2.14063368]
[1733445948137,1.2862,238.61,238.43,26.32046877]
[1733445948330,1.2862,238.61,238.56,2.094]
[1733445949132,2.0933,238.64,238.46,2.06096269]
[1733445949133,4.66,238.67,238.47,26.32046877]
[1733445949338,27.55256877,238.69,238.48,4.66]
[1733445949533,27.55256877,238.69,238.48,6.79799435]
[1733445949733,27.55256877,238.69,238.62,2.0934]
[1733445949934,27.55256877,238.69,238.48,6.79799435]
[1733445950134,27.55256877,238.69,238.51,26.32046877]
[1733445950329,1.2321,238.69,238.52,2.5952]
[1733445950629,1.3145,238.71,238.52,2.5952]
[1733445950834,26.32046877,238.65,238.47,47.08564221]
[1733445951035,30.98046877,238.65,238.47,47.08564221]
[1733445951536,26.32046877,238.6,238.47,47.08564221]
[1733445952039,26.32046877,238.6,238.5,2.0945]
[1733445952334,26.32046877,238.6,238.39,6.0083]
[1733445952535,2.0942,238.54,238.46,2.0948]
[1733445954236,6.7541,238.55,238.46,2.0948]
[1733445954435,6.7541,238.55,238.39,6.0083]
[1733445955830,2.0942,238.54,238.39,6.0083]
[1733445956344,4.66,238.55,238.43,2.095]
[1733445956535,4.66,238.55,238.39,6.0083]
[1733445956738,3.9403,238.59,238.39,6.0083]
[1733445957035,8.3803,238.59,238.39,6.0083]
[1733445957433,26.32046877,238.56,238.39,6.0083]
[1733445957637,26.32046877,238.52,238.34,2.5952]
[1733445957836,26.32046877,238.48,238.34,2.5952]
[1733445958335,26.32046877,238.48,238.31,47.2636913]
[1733445958539,1.3031,238.47,238.31,47.2636913]
[1733445958842,26.32046877,238.4,238.31,0.23327]
[1733445959043,30.76046877,238.4,238.31,0.23327]
[1733445959233,2.0955,238.39,238.31,2.32937]
[1733445959433,30.76046877,238.4,238.31,0.23327]
[1733445960144,4.44,238.4,238.31,0.23327]
[1733445960535,4.44,238.4,238.37,2.0956]
[1733445961840,1.2709,238.46,238.31,0.23327]
[1733445962045,1.2709,238.46,238.31,2.83617]
[1733445963037,2.0949,238.45,238.31,2.83617]
[1733445963242,26.32046877,238.44,238.31,0.23327]
[1733445963441,26.32046877,238.4,238.31,0.23327]
[1733445963642,28.41586877,238.4,238.31,2.32937]
[1733445963848,26.32046877,238.4,238.31,0.23327]
[1733445964237,26.32046877,238.4,238.32,2.0961]
[1733445964742,26.32046877,238.4,238.31,0.23327]
[1733445966046,2.0956,238.38,238.31,0.23327]
[1733445966437,3.3445,238.39,238.31,2.32947]
[1733445967444,3.3445,238.39,238.24,2.0968]
[1733445967445,2.0961,238.32,238.24,2.0968]
[1733445967643,28.41656877,238.32,238.17,3.884]
[1733445967843,26.32046877,238.32,238.17,3.884]
[1733445968146,28.41656877,238.32,238.17,3.884]
[1733445968544,5.7988,238.35,238.17,3.884]
[1733445968942,1.249,238.39,238.17,3.884]
[1733445969143,1.249,238.39,238.2,26.32046877]
[1733445969340,1.249,238.39,238.24,26.32046877]
[1733445969546,1.3588,238.43,238.41,2.0953]
[1733445969744,1.2305,238.55,238.34,2.1468696]
[1733445970047,2.0949,238.46,238.38,2.0955]
[1733445970245,2.0949,238.46,238.28,1.3038]
[1733445971051,2.0947,238.48,238.28,1.3038]
[1733445971348,16.21847955,238.49,238.28,1.3038]
[1733445971548,16.21847955,238.45,238.28,1.3038]
[1733445971747,16.21847955,238.41,238.28,1.3038]
[1733445971946,1.2692,238.44,238.2,4.22]
[1733445971947,16.21847955,238.37,238.2,4.22]
[1733445972652,1.2441,238.4,238.23,16.21847955]
[1733445972851,1.2692,238.44,238.23,16.21847955]
[1733445973353,3.3642,238.44,238.23,16.21847955]
[1733445973745,3.3642,238.44,238.37,2.0956]
[1733445973952,2.0951,238.43,238.23,16.21847955]
[1733445974149,1.2692,238.44,238.23,16.21847955]
[1733445974450,1.2692,238.44,238.27,16.21847955]
[1733445974648,1.3364,238.48,238.27,16.21847955]
[1733445974947,1.3364,238.48,238.41,2.0952]
[1733445975248,1.3364,238.48,238.33,4.22]
[1733445975753,16.21847955,238.45,238.25,4.22]
[1733445975951,2.0951,238.44,238.35,2.0957]
[1733445976154,2.0951,238.44,238.25,4.22]
[1733445976549,2.0951,238.44,238.37,2.0956]
[1733445976950,2.0951,238.43,238.26,2.07034324]
[1733445977244,16.21847955,238.45,238.25,20.43847955]
[1733445977445,16.21847955,238.45,238.25,22.5134366]
[1733445977645,16.21847955,238.45,238.25,6.29495705]
[1733445978053,20.43847955,238.45,238.37,2.0956]
[1733445978855,16.21847955,238.41,238.21,2.10862375]
[1733445979049,16.21847955,238.37,238.21,4.22]
[1733445979348,16.21847955,238.33,238.27,2.0965]
[1733445979953,16.21847955,238.33,238.28,2.0964]
[1733445980249,16.21847955,238.33,238.17,6.8322]
[1733445980453,16.21847955,238.33,238.28,2.0964]
[1733445980653,16.21847955,238.33,238.18,1.2456]
[1733445980850,16.21847955,238.33,238.19,2.61787045]
[1733445981153,16.21847955,238.33,238.18,1.2456]
[1733445981355,16.21847955,238.33,238.19,2.61900318]
[1733445981551,16.21847955,238.33,238.19,2.0685361]
[1733445982153,16.21847955,238.33,238.18,1.2456]
[1733445982350,16.21847955,238.33,238.19,2.61937343]
[1733445982555,16.21847955,238.33,238.18,1.2456]
[1733445982757,5.5647,238.36,238.13,63.27839251]
[1733445982758,16.21847955,238.29,238.13,51.27991296]
[1733445983055,16.21847955,238.29,238.14,2.62151129]
[1733445983256,16.21847955,238.29,238.25,2.0967]
[1733445984154,16.21847955,238.33,238.19,2.0603526]
[1733445984353,16.21847955,238.33,238.13,67.49839251]
[1733445984559,16.21847955,238.33,238.14,2.62350772]
[1733445984758,16.21847955,238.33,238.13,67.49839251]
[1733445984957,2.0963,238.31,238.23,2.0968]
[1733445985259,16.21847955,238.33,238.23,2.0968]
[1733445985461,18.31487955,238.29,238.2,2.0971]
[1733445985654,18.31487955,238.29,238.13,51.27991296]
[1733445985853,16.21847955,238.29,238.13,51.27991296]
[1733445986051,2.0965,238.28,238.2,2.0971]
[1733445986262,2.0965,238.28,238.13,47.05991296]
[1733445986557,2.06681823,238.34,238.13,47.05991296]
[1733445986558,16.21847955,238.25,238.13,47.05991296]
[1733445986757,16.21847955,238.25,238.17,2.0974]
[1733445986958,2.5587,238.27,238.13,47.05991296]
[1733445987253,2.5587,238.27,238.17,2.0974]
[1733445987254,1.2442,238.27,238.17,2.0974]
[1733445987458,1.2442,238.27,238.13,47.05991296]
[1733445988458,1.2442,238.27,238.23,2.0969]
[1733445988664,1.2442,238.27,238.13,47.05991296]
[1733445989862,16.21847955,238.28,238.23,2.0969]
[1733445990054,2.0966,238.27,238.13,47.05991296]
[1733445990255,16.21847955,238.28,238.2,2.0971]
[1733445990460,16.21847955,238.28,238.13,47.05991296]
[1733445990763,18.31497955,238.28,238.13,47.05991296]
[1733445990964,16.21847955,238.28,238.13,47.05991296]
[1733445991753,2.0966,238.27,238.13,47.05991296]
[1733445991959,16.21847955,238.28,238.13,47.05991296]
[1733445992255,16.21847955,238.28,238.23,2.0969]
[1733445992459,16.21847955,238.28,238.13,47.05991296]
[1733445992854,16.21847955,238.28,238.23,2.0968]
[1733445993159,16.21847955,238.28,238.13,47.05991296]
[1733445993366,18.31457955,238.32,238.13,47.05991296]
[1733445993663,16.21847955,238.32,238.13,47.05991296]
[1733445994061,2.0962,238.31,238.13,47.05991296]
[1733445994363,16.21847955,238.28,238.13,47.05991296]
[1733445994757,16.21847955,238.28,238.21,2.097]
[1733445994758,18.31497955,238.28,238.21,2.097]
[1733445994960,18.31497955,238.28,238.13,47.05991296]
[1733445996462,2.0966,238.27,238.13,47.05991296]
[1733445996662,16.21847955,238.28,238.13,47.05991296]
[1733445998066,16.21847955,238.28,238.22,2.097]
[1733445998067,18.31497955,238.28,238.22,2.097]
[1733445998862,16.21847955,238.28,238.24,2.0968]
[1733445999072,16.21847955,238.28,238.13,47.05991296]
[1733445999367,1.3145,238.35,238.34,2.0959]
[1733445999670,1.3145,238.35,238.13,59.61991296]
[1733445999671,1.3489,238.43,238.26,2.12233709]
[1733445999867,16.21847955,238.44,238.27,6.7008]
[1733446000075,1.3095,238.47,238.27,6.7008]
[1733446000972,1.3095,238.47,238.29,16.21847955]
[1733446001271,16.21847955,238.52,238.33,16.21847955]
[1733446001570,16.21847955,238.52,238.34,1.2571]
[1733446001873,16.21847955,238.52,238.47,2.0948]
[1733446002070,1.3401,238.54,238.41,2.1098915]
[1733446002272,1.3401,238.54,238.47,2.0947]
[1733446002471,1.3401,238.54,238.41,2.10527788]
[1733446002673,1.3401,238.54,238.35,4.0]
[1733446003873,2.5819,238.55,238.35,4.0]
[1733446004773,16.21847955,238.51,238.35,4.0]
[1733446005476,18.80037955,238.55,238.35,4.0]
[1733446005871,18.80037955,238.55,238.48,2.0947]
[1733446006670,16.21847955,238.55,238.49,2.0946]
[1733446008080,16.21847955,238.55,238.43,2.6495]
[1733446009476,16.21847955,238.55,238.5,2.0945]
[1733446010482,16.21847955,238.55,238.51,2.0944]
[1733446010674,16.21847955,238.55,238.43,2.6495]
[1733446011575,18.31267955,238.55,238.49,2.0946]
[1733446011776,16.21847955,238.55,238.49,2.0946]
[1733446012182,2.0943,238.53,238.48,2.0947]
[1733446012382,16.21847955,238.55,238.4,2.14572601]
[1733446012582,16.21847955,238.55,238.48,2.0947]
[1733446012781,16.21847955,238.55,238.36,2.6301]
[1733446012782,16.21847955,238.51,238.36,2.6301]
[1733446014291,16.21847955,238.47,238.34,1.2571]
[1733446014585,16.21847955,238.47,238.32,4.0]
[1733446015484,16.21847955,238.43,238.31,1.286]
[1733446015785,16.21847955,238.43,238.3,42.33321647]
[1733446015978,16.21847955,238.35,238.23,4.0]
[1733446016580,16.21847955,238.35,238.21,2.5524]
[1733446016981,2.0962,238.31,238.23,2.0968]
[1733446017485,2.0962,238.31,238.21,2.5524]
[1733446017787,16.21847955,238.31,238.17,4.0]
[1733446017985,16.21847955,238.27,238.17,4.0]
[1733446018191,18.31507955,238.27,238.17,4.0]
[1733446018386,16.21847955,238.27,238.17,4.0]
[1733446018581,16.21847955,238.23,238.13,42.36393107]
[1733446018787,16.21847955,238.23,238.14,2.0976]
[1733446019491,16.21847955,238.23,238.13,42.36393107]
[1733446019492,18.31537955,238.23,238.15,2.0975]
[1733446019983,16.21847955,238.23,238.13,42.36393107]
[1733446020185,16.21847955,238.23,238.19,2.0972]
[1733446020585,16.21847955,238.23,238.16,2.0975]
[1733446020791,16.21847955,238.23,238.13,42.36393107]
[1733446021185,16.21847955,238.23,238.08,7.8759]
[1733446021386,16.21847955,238.27,238.08,7.8759]
[1733446021591,16.21847955,238.27,238.08,24.09437955]
[1733446021991,4.0609,238.3,238.08,24.09437955]
[1733446022587,16.21847955,238.27,238.08,7.8759]
[1733446022792,2.0967,238.26,238.18,2.0973]
[1733446022993,16.21847955,238.27,238.08,7.8759]
[1733446023496,4.0609,238.3,238.1,16.21847955]
[1733446024091,2.7023,238.3,238.1,16.21847955]
[1733446025291,16.21847955,238.27,238.08,3.8759]
[1733446025488,16.21847955,238.27,238.08,7.8759]
[1733446026391,2.0969,238.23,238.15,2.0976]
[1733446026888,4.0,238.25,238.08,7.8759]
[1733446027095,2.0968,238.24,238.08,7.8759]
[1733446028191,2.0968,238.24,238.16,2.0975]
[1733446028391,4.0,238.25,238.08,7.8759]
[1733446028587,2.0969,238.23,238.08,7.8759]
[1733446028786,18.31537955,238.23,238.08,7.8759]
[1733446028987,2.0971,238.21,238.08,3.8759]
[1733446029192,16.21847955,238.23,238.08,3.8759]
[1733446029392,16.21847955,238.23,238.12,2.0978]
[1733446029696,16.21847955,238.23,238.08,3.8759]
[1733446030098,18.31547955,238.23,238.08,3.8759]
[1733446030290,16.21847955,238.23,238.08,3.8759]
[1733446030697,2.097,238.22,238.15,2.0976]
[1733446030897,16.21847955,238.23,238.15,2.0976]
[1733446031199,16.21847955,238.19,238.04,38.38400891]
[1733446031394,16.21847955,238.15,238.04,38.38400891]
[1733446031803,16.21847955,238.11,237.97,3.9525]
[1733446032398,18.31647955,238.11,237.97,3.9525]
[1733446032596,16.21847955,238.11,237.97,3.9525]
[1733446032902,16.21847955,238.11,238.03,2.0986]
[1733446033195,16.21847955,238.06,237.89,38.40789731]
[1733446033397,16.21847955,238.06,237.97,2.0992]
[1733446033601,16.21847955,238.06,237.89,38.40789731]
[1733446033803,1.2288,238.05,237.89,38.40789731]
[1733446034298,16.21847955,238.02,237.89,40.48637988]
[1733446034597,16.21847955,238.02,237.89,38.40789731]
[1733446034901,16.21847955,237.98,237.89,38.40789731]
[1733446035095,16.21847955,237.98,237.84,1.3273]
[1733446035293,2.0992,237.97,237.84,1.3273]
[1733446035500,16.21847955,237.94,237.84,1.3273]
[1733446035693,16.21847955,237.94,237.8,6.04398885]
[1733446035899,16.21847955,237.94,237.85,2.1002]
[1733446036099,16.21847955,237.94,237.8,6.04398885]
[1733446036299,16.21847955,237.9,237.83,2.1004]
[1733446036502,16.21847955,237.9,237.77,2.12537346]
[1733446036695,16.21847955,237.9,237.74,3.98]
[1733446036898,16.21847955,237.9,237.82,2.1005]
[1733446037107,16.21847955,237.9,237.77,2.12390204]
[1733446037308,1.281,237.92,237.73,42.41077097]
[1733446039005,1.281,237.92,237.88,2.0999]
[1733446039306,16.21847955,237.98,237.84,2.06105102]
[1733446039499,16.21847955,238.02,237.85,1.3039]
[1733446039695,16.21847955,238.02,237.97,2.0992]
[1733446040398,16.21847955,238.02,237.87,3.98]
[1733446040599,16.21847955,238.02,237.94,2.0994]
[1733446040808,16.21847955,238.02,237.87,3.98]
[1733446041300,16.21847955,237.98,237.86,2.6045]
[1733446042501,16.21847955,237.98,237.89,2.0998]
[1733446042698,16.21847955,237.98,237.86,1.2964]
[1733446043198,16.21847955,237.98,237.91,2.0997]
[1733446043599,16.21847955,237.98,237.85,1.3039]
[1733446043600,2.0992,237.97,237.88,2.0999]
[1733446043903,16.21847955,237.94,237.78,3.98]
[1733446044099,16.21847955,237.9,237.78,3.98]
[1733446044303,16.21847955,237.9,237.68,20.19847955]
[1733446044503,16.21847955,237.9,237.73,39.79487097]
[1733446044700,16.21847955,237.9,237.84,2.1003]
[1733446045098,16.21847955,237.9,237.77,2.08053211]
[1733446045309,16.21847955,237.9,237.73,39.79487097]
[1733446045499,2.5133,237.92,237.73,39.79487097]
[1733446046311,2.5133,237.92,237.87,2.1]
[1733446047202,2.5133,237.92,237.79,2.06916498]
[1733446047203,2.5133,237.92,237.82,2.1004]
[1733446047402,2.5133,237.92,237.76,3.98]
[1733446047602,16.21847955,237.97,237.76,20.19847955]
[1733446047808,16.21847955,237.97,237.77,2.10531494]
[1733446048010,18.30635003,237.97,237.77,2.10531494]
[1733446048207,2.0995,237.94,237.77,2.10531494]
[1733446048404,3.8113,237.93,237.85,2.1002]
[1733446049412,3.8113,237.93,237.77,2.10531494]
[1733446049615,5.9108,237.93,237.77,2.10531494]
[1733446050009,3.8113,237.93,237.77,2.10531494]
[1733446050214,3.8113,237.93,237.76,3.98]
[1733446050408,3.8113,237.93,237.76,20.19847955]
[1733446050607,1.2474,237.93,237.76,20.19847955]
[1733446050812,1.2474,237.93,237.81,2.1006]
[1733446051014,1.2474,237.93,237.81,2.07606526]
[1733446051210,1.2474,237.93,237.76,20.19847955]
[1733446051715,3.76,238.01,237.81,16.21847955]
[1733446051916,5.044,238.01,237.94,2.0994]
[1733446052115,1.284,238.01,237.84,3.76]
[1733446052312,1.284,238.01,237.85,1.2966]
[1733446052514,1.284,238.01,237.89,2.0998]
[1733446052714,1.284,238.01,237.85,1.2966]
[1733446053016,43.72,238.19,237.93,16.21847955]
[1733446053219,2.5399,238.13,237.94,5.0061]
[1733446053521,1.2906,238.13,237.97,16.21847955]
[1733446053711,2.5927,238.18,237.98,1.2397]
[1733446054017,16.21847955,238.25,238.05,16.21847955]
[1733446054315,16.21847955,238.21,238.13,2.0977]
[1733446054616,16.21847955,238.21,238.05,5.81144554]
[1733446054815,16.21847955,238.21,238.05,3.76]
[1733446055120,16.21847955,238.21,238.12,2.0978]
[1733446055814,1.2906,238.28,238.12,2.0978]
[1733446055815,16.21847955,238.25,238.12,2.0978]
[1733446057514,18.31517955,238.25,238.12,2.0978]
[1733446058021,16.21847955,238.25,238.12,2.0978]
[1733446059115,3.76,238.26,238.06,2.07991677]
[1733446059319,3.76,238.26,238.05,19.97847955]
[1733446059320,3.76,238.26,238.07,2.6377]
[1733446059719,1.2906,238.28,238.07,2.6377]
[1733446059922,1.2906,238.28,238.09,16.21847955]
[1733446060221,1.2906,238.28,238.1,3.76]
[1733446060422,1.2906,238.28,238.1,5.0478]
[1733446060817,1.2906,238.28,238.15,2.0976]
[1733446061017,17.50907955,238.28,238.1,5.0478]
[1733446061715,17.50907955,238.28,238.1,1.2878]
[1733446062414,16.21847955,238.2,238.07,2.6377]
[1733446062617,16.21847955,238.16,237.99,5.0498]
[1733446062823,16.21847955,238.12,237.94,2.5286]
[1733446063016,19.97847955,238.12,237.95,2.60216413]
[1733446063216,16.21847955,238.08,237.95,2.11556524]
[1733446063518,16.21847955,238.08,237.94,3.8184]
[1733446063815,16.21847955,238.04,237.87,3.76]
[1733446064024,3.76,238.03,237.87,3.76]
[1733446064321,16.21847955,238.0,237.87,3.76]
[1733446064919,16.21847955,238.0,237.97,2.0992]
[1733446065424,16.21847955,238.0,237.87,3.76]
[1733446065621,16.21847955,237.96,237.79,3.76]
[1733446066015,16.21847955,237.92,237.79,3.76]
[1733446066222,16.21847955,237.92,237.76,1.3502]
[1733446066621,16.21847955,237.92,237.8,2.1006]
[1733446066923,16.21847955,237.92,237.76,3.44018527]
[1733446067114,16.21847955,237.92,237.76,1.3502]
[1733446067518,16.21847955,237.92,237.76,3.46014994]
[1733446067720,16.21847955,237.96,237.76,1.3502]
[1733446067922,16.21847955,237.96,237.91,2.0996]
[1733446068120,1.3036,237.98,237.82,3.76]
[1733446068321,1.2618,237.99,237.82,3.76]
[1733446068520,1.3085,238.03,237.82,19.97847955]
[1733446068820,1.3085,238.03,237.83,3.92940958]
[1733446069127,16.21847955,238.04,237.86,16.21847955]
[1733446069423,19.97847955,238.08,237.87,1.2505]
[1733446069823,19.97847955,238.08,237.88,3.89605343]
[1733446070023,3.76,238.08,237.89,26.43889757]
[1733446070219,1.3084,238.09,237.9,3.76]
[1733446070624,26.43889757,238.1,238.08,2.0981]
[1733446071425,1.3601,238.13,237.98,3.76]
[1733446071931,1.3601,238.13,238.1,2.098]
[1733446072230,1.3601,238.13,237.99,1.2608]
[1733446073720,1.3601,238.13,238.09,2.0981]
[1733446074428,1.3601,238.13,237.99,1.2608]
[1733446074830,26.43889757,238.1,237.99,1.2608]
[1733446075027,26.43889757,238.1,238.07,2.0983]
[1733446075327,1.3601,238.13,237.99,1.2608]
[1733446075729,1.3601,238.13,238.1,2.098]
[1733446076330,1.3601,238.13,237.99,1.2608]
[1733446076331,1.3601,238.13,238.11,2.0979]
[1733446077231,26.43889757,238.14,238.11,2.0979]
[1733446077831,26.43889757,238.14,238.12,2.0978]
[1733446079933,26.43889757,238.14,238.13,2.0978]
[1733446081432,26.43889757,238.14,237.93,4.199]
[1733446081625,26.43889757,238.08,237.91,3.76]
[1733446082031,26.43889757,238.08,238.07,2.0983]
[1733446082332,26.43889757,238.12,237.99,3.76]
[1733446082532,30.19889757,238.16,238.12,2.0978]
[1733446082831,30.19889757,238.16,238.02,2.13744811]
[1733446083135,30.19889757,238.16,238.0,1.2374]
[1733446083641,30.19889757,238.16,238.12,2.0978]
[1733446084441,26.43889757,238.2,238.0,1.2374]
[1733446084642,26.43889757,238.2,238.01,2.5542]
[1733446085236,26.43889757,238.2,238.02,4.1974]
[1733446085437,5.96305816,238.28,238.08,2.0982]
[1733446085438,26.43889757,238.24,238.08,2.0982]
[1733446085635,26.43889757,238.24,238.02,4.1974]
[1733446085843,26.43889757,238.2,238.02,4.1974]
[1733446086036,26.43889757,238.16,238.11,2.0979]
[1733446086544,26.43889757,238.16,238.12,2.0978]
[1733446086839,26.43889757,238.16,238.03,3.76]
[1733446087044,26.43889757,238.16,238.12,2.0978]
[1733446087239,30.19889757,238.2,238.03,3.76]
[1733446088239,30.19889757,238.2,238.15,2.0975]
[1733446088435,26.43889757,238.2,238.03,3.76]
[1733446089140,26.43889757,238.2,238.15,2.0975]
[1733446089839,26.43889757,238.2,238.01,31.14155522]
[1733446090047,16.25772932,238.19,238.13,2.0978]
[1733446090248,16.25772932,238.19,238.05,0.33239]
[1733446090745,16.25772932,238.19,238.14,2.0977]
[1733446091147,16.25772932,238.19,238.05,0.33239]
[1733446092041,16.25772932,238.23,238.05,0.33239]
[1733446092446,3.8188,238.28,238.23,2.0969]
[1733446092447,16.25772932,238.27,238.23,2.0969]
[1733446092648,16.25772932,238.27,238.13,3.76]
[1733446092844,16.25772932,238.27,238.14,2.05471839]
[1733446093043,16.25772932,238.22,238.14,2.05471839]
[1733446093243,16.25772932,238.18,238.14,2.05471839]
[1733446093646,16.25772932,238.18,238.05,4.09239]
[1733446093947,3.8188,238.28,238.05,4.09239]
[1733446094149,16.25772932,238.24,238.05,4.09239]
[1733446094941,16.25772932,238.2,238.05,4.09239]
[1733446095738,16.25772932,238.2,238.18,2.0973]
[1733446096043,16.25772932,238.2,238.05,4.09239]
[1733446096747,16.25772932,238.16,238.05,4.09239]
[1733446096943,7.5788,238.28,238.05,0.33239]
[1733446096944,16.25772932,238.12,238.05,0.33239]
[1733446097344,16.25772932,238.08,237.94,3.76]
[1733446097545,16.25772932,238.08,238.01,2.0988]
[1733446097844,16.25772932,238.04,237.91,3.76]
[1733446098062,16.25772932,238.04,237.86,1.2533]
[1733446098063,16.25772932,238.0,237.86,1.2533]
[1733446098347,16.25772932,237.96,237.82,2.0520271]
[1733446098546,16.25772932,237.92,237.77,1.2609]
[1733446099349,16.25772932,237.88,237.69,5.0485]
[1733446099544,16.25772932,237.88,237.73,40.50858806]
[1733446099941,16.25772932,237.88,237.83,2.1004]
[1733446100350,16.25772932,237.88,237.73,40.50858806]
[1733446100351,16.25772932,237.88,237.81,2.1005]
[1733446100650,16.25772932,237.88,237.73,40.50858806]
[1733446100844,16.25772932,237.92,237.73,40.50858806]
[1733446101046,16.25772932,237.96,237.76,16.25772932]
[1733446101349,1.3391,237.99,237.8,16.25772932]
[1733446101548,1.3391,237.99,237.96,2.0992]
[1733446101845,1.3391,237.99,237.87,3.76]
[1733446102053,1.3391,237.99,237.97,2.0991]
[1733446102454,1.3391,237.99,237.87,5.87930939]
[1733446103142,1.2691,238.02,237.87,5.87930939]
[1733446103347,16.25772932,238.08,237.88,16.25772932]
[1733446103845,16.25772932,238.12,237.88,16.25772932]
[1733446104047,16.25772932,238.12,237.92,16.25772932]
[1733446104244,16.25772932,238.16,237.96,16.25772932]
[1733446104446,3.9571,238.17,237.97,6.4152]
[1733446105049,3.9571,238.17,238.13,2.0977]
[1733446105551,16.25772932,238.16,237.97,6.4152]
[1733446105753,3.9571,238.17,237.97,2.6552]
[1733446105754,16.25772932,238.12,237.97,2.6552]
[1733446107052,16.25772932,238.16,237.97,2.6552]
[1733446108051,3.9571,238.17,238.0,16.25772932]
[1733446108246,3.9571,238.17,238.0,18.36899032]
[1733446108446,3.9571,238.17,238.15,2.0976]
[1733446109350,3.9571,238.17,238.13,2.0977]
[1733446109550,3.9571,238.17,238.05,3.76]
[1733446109749,16.25772932,238.16,237.97,2.6552]
[1733446109945,3.9571,238.17,237.99,2.13394241]
[1733446109946,16.25772932,238.12,237.99,2.13394241]
[1733446110748,16.25772932,238.12,237.97,1.2936]
[1733446110953,16.25772932,238.16,238.11,2.0979]
[1733446111154,16.25772932,238.16,238.03,2.05175696]
[1733446111448,16.25772932,238.16,238.02,2.0987]
[1733446111652,16.25772932,238.16,238.03,2.12379634]
[1733446111848,16.25772932,238.16,237.97,1.2936]
[1733446113255,16.25772932,238.12,237.92,16.25772932]
[1733446113457,16.25772932,238.12,237.94,3.76]
[1733446113649,16.25772932,238.12,237.99,2.099]
[1733446113857,16.25772932,238.12,237.94,3.76]
[1733446114052,16.25772932,238.16,237.96,16.25772932]
[1733446114258,10.62985566,238.15,237.96,16.25772932]
[1733446114457,16.25772932,238.16,237.96,16.25772932]
[1733446114954,16.25772932,238.16,238.11,2.0979]
[1733446115158,16.25772932,238.16,237.96,16.25772932]
[1733446115159,16.25772932,238.12,237.96,3.76]
[1733446115458,16.25772932,238.08,238.01,2.0988]
[1733446115656,16.25772932,238.08,237.9,1.2976]
[1733446116061,16.25772932,238.12,237.9,1.2976]
[1733446116258,10.63341941,238.11,237.92,16.25772932]
[1733446116464,3.76,238.14,237.92,16.25772932]
[1733446116662,16.25772932,238.16,237.96,16.25772932]
[1733446116961,16.25772932,238.16,237.97,5.0141]
[1733446117160,16.25772932,238.16,238.13,2.0977]
[1733446117556,3.9571,238.17,238.03,5.88671256]
[1733446117756,3.9571,238.17,238.03,3.76]
[1733446118156,16.25772932,238.16,238.03,3.76]
[1733446118364,16.25772932,238.16,238.0,5.83400151]
[1733446118664,16.25772932,238.16,238.0,3.76]
[1733446119063,16.25772932,238.12,237.95,3.76]
[1733446119255,16.25772932,238.12,238.0,2.0989]
[1733446119459,5.8578,238.14,237.95,3.76]
[1733446119460,16.25772932,238.08,237.95,3.76]
[1733446120663,16.25772932,238.08,237.89,1.2497]
[1733446120860,16.25772932,238.0,237.83,3.76]
[1733446121056,3.8878,237.99,237.83,3.76]
[1733446121455,1.3285,237.99,237.85,16.25772932]
[1733446121764,3.76,238.03,238.02,2.0987]
[1733446121961,1.3285,238.06,237.91,3.76]
[1733446122257,1.3285,238.06,238.05,2.0985]
[1733446122856,1.3285,238.06,237.91,5.0698]
[1733446122857,3.76,238.1,238.09,2.0981]